Cogmind - Beta 14 @@@ ROGUE MODE // 2024.10.13 @ 13:31:38 Player: carterz30cal Result: Destroyed by Y-54 Guardian with Gatling Laser Performance ------------- Evolutions (0) 0 Regions Visited (4) 800 Robots Destroyed (27) 135 Value Destroyed (571) 571 Prototype IDs (1) 20 Alien Tech Used (0) 0 Bonus (-141) -141 TOTAL SCORE: 1385 Bonus ------- Friendly Fire -141 Cogmind --------- Core Integrity 0/250 Matter 300/300 Energy 290/290 System Corruption 0% Temperature Cool (12) Movement Treading (160) Location -7/Recycling Parts ------- > --- POWER (1) -------- Improved Deuterium Engine > --- PROPULSION (2) --- Light Treads Medium Treads > --- UTILITY (2) ------ Large Storage Unit Medium Armor Plating > --- WEAPON (2) ------- Subdweller Beam Cannon Assault Rifle > --- INVENTORY (15) --- Ion Engine Light Treads Experimental Sensor Array Medium Armor Plating Medium Armor Plating Medium Armor Plating Medium Armor Plating Scrap Shield Light Assault Rifle Light Assault Rifle Peak State ------------ > --- POWER ------------ Improved Deuterium Engine > --- PROPULSION ------- Light Treads Medium Treads > --- UTILITY ---------- Large Storage Unit Medium Armor Plating > --- WEAPON ----------- Subdweller Beam Cannon Assault Rifle > --- INVENTORY -------- Ion Engine Ion Engine Light Treads Experimental Sensor Array Medium Armor Plating Medium Armor Plating Medium Armor Plating Medium Armor Plating Medium Armor Plating Scrap Shield Subdweller Beam Cannon Light Assault Rifle Light Assault Rifle [Rating: 18] Favorites ----------- Power Ion Engine Engine Ion Engine Propulsion Aluminum Leg Treads Medium Treads Leg Aluminum Leg Utility Medium Armor Plating Device Experimental Sensor Array Storage Large Storage Unit Protection Medium Armor Plating Weapon Assault Rifle Energy Cannon Subdweller Beam Cannon Ballistic Gun Assault Rifle Build | -11 -10 -10 -10 -7 ------- Run | Yrd Mat Min Sub Rec Slots Evolved . | . . . . . Power . | . . . . . Propulsion . | . . . . . Utility . | . . . . . Weapon . | . . . . . Parts Attached 21 | 6 3 4 3 5 Power 5 | 1 1 2 . 1 Engine 5 | 1 1 2 . 1 Core . | . . . . . Reactor . | . . . . . Propulsion 4 | 2 . . . 2 Treads 2 | . . . . 2 Leg 2 | 2 . . . . Wheel . | . . . . . Hover . | . . . . . Flight . | . . . . . Utility 6 | 1 2 2 . 1 Device 1 | . . 1 . . Storage 2 | 1 1 . . . Processor . | . . . . . Hackware . | . . . . . Protection 3 | . 1 1 . 1 Artifact . | . . . . . Weapon 6 | 2 . . 3 1 Energy Gun . | . . . . . Energy Cannon 3 | . . . 3 . Ballistic Gun 3 | 2 . . . 1 Ballistic Cannon . | . . . . . Launcher . | . . . . . Special Weapon . | . . . . . Impact Weapon . | . . . . . Slashing Weapon . | . . . . . Piercing Weapon . | . . . . . Special Melee Weapon . | . . . . . Unidentified Prototypes 1 | . . 1 . . Parts Lost 2 | . . 1 . 1 Power 1 | . . 1 . . Propulsion . | . . . . . Utility 1 | . . . . 1 Weapon . | . . . . . Highest Loss Streak 1 | . . 1 . 1 To Critical Strikes . | . . . . . Average Slot Usage (%) 99 | . 97 99 100 99 Engine 13 | . 14 13 14 14 Treads 6 | . . . . 22 Leg 21 | . 28 28 28 4 Storage 14 | . 14 14 14 14 Protection 13 | . 11 14 14 14 Energy Cannon 6 | . . . 9 16 Ballistic Gun 21 | . 28 28 19 11 Peak Build Rating 18 | 6 9 16 12 18 Average Rating 11 | 4 8 9 10 16 On Entrance 7 | . 6 9 10 12 Naked Turns . | . . . . . Heaviest Build 48 | 13 33 35 48 48 Greatest Support 48 | 20 20 20 20 48 Greatest Overweight (x) 4 | . 1 1 2 4 Average Overweight (x) . | . . 1 1 . Largest Inventory Capacity 15 | 8 15 15 15 15 Average Capacity 13 | 6 11 15 15 15 Most Carried 14 | 6 8 10 14 14 Average Carried 10 | 3 7 8 12 12 Final Capacity 15 | 8 15 15 15 15 Final Carried 14 | 6 8 10 14 11 Class Distribution -------------------- 100% | Mutant Dominant Class ---------------- Mutant | -10/Materials Mutant | -10/Mines Mutant | -10/Subcaves Mutant | -7/Recycling Resources | -11 -10 -10 -10 -7 ----------- Run | Yrd Mat Min Sub Rec Matter Collected 734 | 264 170 91 66 143 Remotely . | . . . . . Salvage Created 1052 | 80 318 44 149 461 Parts 50 | 4 22 2 4 18 Haulers Intercepted . | . . . . . Recyclers Shooed 2 | . 1 . . 1 Parts Field Recycled . | . . . . . Retrieved Matter . | . . . . . Parts Self-Destructed 14 | . . . 14 . Prevented . | . . . . . Kills | -11 -10 -10 -10 -7 ------- Run | Yrd Mat Min Sub Rec Combat Hostiles Destroyed 18 | . 9 1 2 6 Guns 13 | . 9 1 1 2 Cannons 4 | . . . 1 3 Classes Destroyed 9 | 1 4 . 2 2 Worker 2 | . 2 . . . Recycler 3 | 1 1 . . 1 Turret 1 | . . . 1 . Watcher 2 | . 2 . . . Swarmer 9 | . 8 . 1 . Grunt 3 | . 1 1 . 1 Protector 2 | . . . . 2 Sentry 3 | . . . . 3 Subdweller 1 | . . . 1 . Thug 1 | . . . 1 . Best Kill Streak 4 | 1 4 1 2 1 Combat Bots Only 3 | . 3 1 1 1 Max Kills in Single Turn 2 | 1 2 1 1 1 Gunslinging 1 | . 1 . . . Exploded . | . . . . . Melee . | . . . . . Uniques/NPCs Destroyed . | . . . . . Combat | -11 -10 -10 -10 -7 -------- Run | Yrd Mat Min Sub Rec Hostile Shots Fired 142 | . 43 18 23 58 Missed 61 | . 19 6 10 26 Damage Taken 848 | . 322 151 139 236 Core 250 | . 151 16 25 58 Absorbed by Shields . | . . . . . Core Remaining (%) 100 | 100 . . . . Volleys Fired 86 | 1 43 11 7 24 Largest 2 | 2 2 2 2 2 Hottest 160 | 40 40 40 160 160 Shots Fired 170 | 2 86 22 14 46 Gun 130 | 2 86 22 6 14 Cannon 40 | . . . 8 32 Launcher . | . . . . . Special . | . . . . . Kinetic 130 | 2 86 22 6 14 Thermal 40 | . . . 8 32 Explosive . | . . . . . Electromagnetic . | . . . . . Robot Hit Streak 10 | 1 5 6 5 10 Robot Miss Streak 5 | . 5 3 3 3 Penetration Max . | . . . . . Secondary Targets 2 | . 2 . . . Max Gunslinging Chain 1 | . 1 . . . Shots Hit Robots 94 | 1 42 15 7 29 Core Hits 48 | 1 22 5 6 14 Critical Kills 1 | . . . . 1 Critical Parts Destroyed 1 | . 1 . . . Critical Strikes 2 | . 1 . . 1 Meltdown 1 | . . . . 1 Destroy 1 | . 1 . . . Melee Attacks . | . . . . . Impact . | . . . . . Slashing . | . . . . . Piercing . | . . . . . Sneak Attacks . | . . . . . Combat Hostiles . | . . . . . Follow-up Attacks . | . . . . . Damage Inflicted 1633 | 15 589 165 166 698 Guns 758 | 15 413 165 54 111 Cannons 699 | . . . 112 587 Explosions 176 | . 176 . . . Melee . | . . . . . Ramming . | . . . . . Kinetic 758 | 15 413 165 54 111 Thermal 699 | . . . 112 587 Explosive . | . . . . . Electromagnetic 176 | . 176 . . . Impact . | . . . . . Slashing . | . . . . . Piercing . | . . . . . Highest Corruption . | . . . . . Average Corruption . | . . . . . Corruption Purged . | . . . . . Corruption Blocked . | . . . . . Overload Shots . | . . . . . Overflow Damage 26 | . . . . 26 Projectiles 26 | . . . . 26 Explosions . | . . . . . Melee . | . . . . . Knockbacks . | . . . . . Impact . | . . . . . Kinetic . | . . . . . Secondary . | . . . . . Self-Inflicted Damage 1 | . 1 . . . Shots 1 | . 1 . . . Rammed . | . . . . . Targets Rammed . | . . . . . Kicked . | . . . . . Crushed . | . . . . . Highest Temperature 530 | . 24 35 48 530 Average Temperature 110 | . 5 12 27 171 Received Heat Transfer 213 | . 36 87 24 66 Effects 6 | . . . . 6 Shutdowns 3 | . . . . 3 Energy Bleed 1 | . . . . 1 Matter Decay 1 | . . . . 1 Short Circuit 1 | . . . . 1 Siege Activations . | . . . . . Robots Corrupted . | . . . . . Combat Hostiles . | . . . . . Parts Fried 1 | . 1 . . . Impact Corruptions . | . . . . . Robots Melted 1 | . . . . 1 Combat Hostiles 1 | . . . . 1 Parts Melted 2 | . 1 . . 1 Heat Transferred 834 | . . . 148 686 Parts Sabotaged . | . . . . . Parts Stolen . | . . . . . Parts Stripped . | . . . . . Power Chain Reactions . | . . . . . Alert | -11 -10 -10 -10 -7 ------- Run | Yrd Mat Min Sub Rec Peak Influence 233 | 5 233 21 . 83 Initial 33 | . 3 11 . 33 Average 51 | 1 104 8 . 35 Maximum Alert Level 1 | . 1 . . . Low Security (%) 97 | 100 93 100 . 100 Level 1 2 | . 6 . . . Level 2 . | . . . . . Level 3 . | . . . . . Level 4 . | . . . . . Level 5 . | . . . . . High Security . | . . . . . Max Security . | . . . . . Squads Dispatched 1 | . 1 . . . Investigation 1 | . 1 . . . Extermination . | . . . . . Reinforcement . | . . . . . Assault . | . . . . . Garrison . | . . . . . Intercept . | . . . . . Searches Triggered . | . . . . . Construction Impeded . | . . . . . Haulers Reinforced . | . . . . . Active Scanning Responses . | . . . . . Cargo Convoy Interrupts . | . . . . . Stealth | -11 -10 -10 -10 -7 --------- Run | Yrd Mat Min Sub Rec Distress Signals 2 | . 2 . . . Communications Jammed . | . . . . . Distress Signals . | . . . . . Times Spotted 43 | . 22 2 13 6 Peak Tracking Total 6 | . 4 2 6 2 Tactical Retreats 3 | . 2 . 1 . Traps | -11 -10 -10 -10 -7 ------- Run | Yrd Mat Min Sub Rec Traps Triggered 1 | . 1 . . . Indirectly . | . . . . . Trap Hack Attempts . | . . . . . Triggered . | . . . . . Disarmed . | . . . . . Reprogrammed . | . . . . . Reused . | . . . . . Traps Extracted . | . . . . . Installed . | . . . . . Triggered . | . . . . . Machines | -11 -10 -10 -10 -7 ---------- Run | Yrd Mat Min Sub Rec Machines Disabled 1 | . 1 . . . Max in Single Turn 1 | . 1 . . . Machines Repaired . | . . . . . Machines Dismantled . | . . . . . Machines Sabotaged . | . . . . . Overloaded Fab Kills . | . . . . . Hacking | -11 -10 -10 -10 -7 --------- Run | Yrd Mat Min Sub Rec Machines Accessed 3 | . 2 . . 1 Terminals 1 | . 1 . . . Fabricators . | . . . . . Repair Stations . | . . . . . Recycling Units 2 | . 1 . . 1 Scanalyzers . | . . . . . Garrison Access . | . . . . . Total Hacks 6 | . 4 . . 2 Successful 5 | . 3 . . 2 Failed 1 | . 1 . . . Catastrophic . | . . . . . Database Lockouts . | . . . . . Manual 2 | . 1 . . 1 Terminals 2 | . 2 . . . Fabricators . | . . . . . Repair Stations . | . . . . . Recycling Units 4 | . 2 . . 2 Scanalyzers . | . . . . . Garrison Access . | . . . . . Terminal Hacks 1 | . 1 . . . Zone Layout 1 | . 1 . . . Fabricator Hacks . | . . . . . Repair Station Hacks . | . . . . . Recycling Unit Hacks 2 | . 1 . . 1 Report Inventory 2 | . 1 . . 1 Scanalyzer . | . . . . . Garrison Access Hacks . | . . . . . Unauthorized Hacks 2 | . 1 . . 1 Terminals . | . . . . . Fabricators . | . . . . . Repair Stations . | . . . . . Recycling Units 2 | . 1 . . 1 Reject 2 | . 1 . . 1 Scanalyzers . | . . . . . Garrison Access . | . . . . . Data Cores Recovered . | . . . . . Used . | . . . . . Hacking Detections 2 | . 1 . . 1 Full Trace Events . | . . . . . Feedback Events . | . . . . . Feedback Blocked . | . . . . . Robot Schematics Acquired . | . . . . . Robots Built . | . . . . . Authchips . | . . . . . Time . | . . . . . Total Robot Build Rating . | . . . . . Part Schematics Acquired . | . . . . . Parts Built . | . . . . . Authchips . | . . . . . Time . | . . . . . Total Part Build Rating . | . . . . . Parts Repaired . | . . . . . Time . | . . . . . Parts Recycled . | . . . . . Recycled Matter . | . . . . . Retrieved Matter . | . . . . . Retrieved Components . | . . . . . Parts Scanalyzed . | . . . . . Part Schematics Acquired . | . . . . . Parts Damaged . | . . . . . Bothacking | -11 -10 -10 -10 -7 ------------ Run | Yrd Mat Min Sub Rec Used RIF Installer . | . . . . . Robots Hacked . | . . . . . Non-combat . | . . . . . Combat . | . . . . . Robot Hacks Applied . | . . . . . Relay Couplers Released . | . . . . . Fabnet Peak Effective % . | . . . . . Robots Rewired . | . . . . . Allies Hacked . | . . . . . Hacks Repelled . | . . . . . Allies | -11 -10 -10 -10 -7 -------- Run | Yrd Mat Min Sub Rec Total Allies 2 | . . 2 . . Largest Group 2 | . . 2 2 . Highest-Rated Group 42 | . . 42 42 . Highest-Rated Ally 31 | . . 31 31 . Total Orders . | . . . . . Ally Attacks 12 | . . . 12 . Total Damage 142 | . . . 142 . Kills . | . . . . . Allies Corrupted . | . . . . . Allies Melted . | . . . . . Intel | -11 -10 -10 -10 -7 ------- Run | Yrd Mat Min Sub Rec Robot Analysis Total . | . . . . . Derelict Logs Recovered 3 | . . 2 1 . Drone Launches . | . . . . . Drone Recoveries . | . . . . . Exploration | -11 -10 -10 -10 -7 ------------- Run | Yrd Mat Min Sub Rec Turns Passed 3297 | 90 899 655 695 958 Spaces Moved 1704 | 65 494 325 313 507 Core 7 | 7 . . . . Treads 458 | . . . . 458 Legs 1239 | 58 494 325 313 49 Wheels . | . . . . . Hover . | . . . . . Flight . | . . . . . Fastest Speed 50 | 50 120 190 190 160 Average Speed 175 | 112 152 190 213 172 Slowest Speed 400 | 120 190 190 260 400 Overloaded Moves . | . . . . . Propulsion Burnouts . | . . . . . Robots Hopped . | . . . . . Cave-ins Triggered . | . . . . . Exploration Rate (%) 49 | 4 72 70 20 81 Regions Visited 4 Branch Regions 3 Pre-discovered Areas . | . . . . . Known Exits Taken . | . . . . . Unknown Exits Taken 4 | 1 1 1 1 . Scrap Searched 4 | . . 2 2 . Spaces Dug . | . . . . . Terrain Destroyed 6 | . . . . 6 Melee . | . . . . . Projectile 6 | . . . . 6 AOE . | . . . . . Terrain Rammed . | . . . . . Walls Destroyed . | . . . . . Machines Disabled . | . . . . . Actions | -11 -10 -10 -10 -7 --------- Run | Yrd Mat Min Sub Rec Total 1855 | 77 566 342 324 546 Wait 22 | . 16 . . 6 Move 1700 | 64 493 324 312 507 Hop . | . . . . . Pick Up 16 | 6 6 2 2 . Fast Attach 9 | 6 1 1 . 1 Attach 2 | . . . . 2 Detach . | . . . . . Swap 10 | . 2 3 3 2 Drop 10 | . 5 1 . 4 Fire 86 | 1 43 11 7 24 Melee . | . . . . . Ram . | . . . . . Kick . | . . . . . Crush . | . . . . . Escape Stasis . | . . . . . Rewire . | . . . . . Trap . | . . . . . Miscellaneous . | . . . . . Route ------- -11/Scrapyard -10/Materials (discovered 4 exits: [*Mat x3] / [*Min]) -10/Mines -10/Subcaves -7/Recycling (discovered 1 exit: [*Fac]) History --------- Turn | Location | Event 4 | -11/Scrapyard | Discovered new exit (range 16) 91 | -11/Scrapyard | Entered Materials 151 | -10/Materials | Discovered new exit (range 16) 312 | -10/Materials | Build established: Mutant 442 | -10/Materials | Core integrity fell below 50% 487 | -10/Materials | Discovered new exit (range 16) 609 | -10/Materials | Discovered new exit (range 20) 888 | -10/Materials | Discovered new exit (range 5) 990 | -10/Materials | Entered Mines 1139 | -10/Mines | Found DCF Scrap (11 items) 1191 | -10/Mines | Learned 2 Materials zone layouts 1520 | -10/Mines | Learned 2 Materials zone layouts 1569 | -10/Mines | Found a damaged Exp. Sensor Array with a note attached 1573 | -10/Mines | Found Prototype Device 1574 | -10/Mines | Identified Exp. Sensor Array 1592 | -10/Mines | Discovered new exit (range 7) 1645 | -10/Mines | Entered Subcaves 1645 | -10/Subcaves | Accompanied by 2 allies 1650 | -10/Subcaves | Led the pair of lost Derelicts to an unsafe place 1762 | -10/Subcaves | Learned location of 1 exit from Materials 1884 | -10/Subcaves | Disturbed a concealed Subdweller 1967 | -10/Subcaves | A swath of the cavern ceiling suddenly collapsed 2293 | -10/Subcaves | Discovered new exit (range 16) 2340 | -10/Subcaves | Entered Recycling 2618 | -7/Recycling | Scanned before Scraplab entrance 2642 | -7/Recycling | Entered Scraplab 3085 | -7/Recycling | Core integrity fell below 20% 3288 | -7/Recycling | Discovered new exit (range 16) 3298 | -7/Recycling | Destroyed by Y-54 Guardian with Gatling Laser Last Messages --------------- 03107_ R-06 Scavenger collects Gatling Laser. 03107_ R-06 Scavenger inserts Lgt. Treads into recycling unit. 03110_ R-06 Scavenger collects Flak Gun. 03110_ R-06 Scavenger collects Imp. Heat Sink. 03110_ R-06 Scavenger inserts Terrain Scan Processor into recycling unit. 03111_ Dropped Broken Sub. Beam Cannon. 03113_ R-06 Scavenger collects Broken Sub. Beam Cannon. 03113_ R-06 Scavenger inserts Terrain Scanner into recycling unit. 03117_ R-06 Scavenger destroyed. 03117_ R-06 Scavenger collects Gatling Laser. 03120_ R-06 Scavenger inserts Gatling Laser into recycling unit. 03121_ R-06 Scavenger collects Imp. Heat Sink. 03124_ R-06 Scavenger collects Tractor Beam. 03127_ R-06 Scavenger collects Lgt. Ion Engine. 03273_ Acquired 72 matter. 03275_ Acquired 19 matter. 03285_ R-06 Scavenger inserts Wheel into recycling unit. 03286_ Recycling unit begins recycling process. 03288_ EXIT=FOUND 03298_ Y-54 Guardian springs to life. Map ----- +----------------------------------------------------+ | ?????????????????????????????? | | ?????????????????????????????? | | ?????????????????????????????? | | ?????????????????????????????? | | ?????????????????????????????? | | ?????????????????????????????? | | ?????????????????????????????? | | ???????????###########????#### | | ???????????# ????# | | ???????????# ?????# | | ???????????# ""????# | | ???????????# """""#?# | | ???????????# """""#?# | | ???????????# """""#?# | | ??####?????# """ #?# | | ??# ?????# #?# | | ?## < ?????# #?# | | ?"" #????# #?# | | ??Y #????# #?# | | ??" #????# #?# | | ??# #????##+####+######?#### | | ??# #?????# ## ######### | | ?## ###???# | | ?#Y ""#???# ## | | ??# Y"#???# ## | | ??# @""#???# ## ######### | | ??# ###???# ########???????? | | ??# #?????# #??????????????? | | ??# #?????# #?############## | | ??# ####### #?# # | | ??# ##"""## #?# # | | ?## ##"Y"## ### # | | ?#% % # """ # | | ?## + """"" # | | ??# % # """"" # | | ??# ####### ### """"" "" # | | ??# #?##??###?# """ "" # | | ??# #?##??????# T" + | | ??# # ???? #?# "" # | | ??# # #?# "" # | | ### + #?# # | | #!! # #?############## | | #!! # #??????????????? | | #!! #? #??????????????? | | ### #? #??????????????? | | ??# #?? ???????????????? | | ??# #??? #??????????????? | | ??# #??? #??????????????? | | ??# #???? #??????????????? | | ### #?????###??????????????? | +----------------------------------------------------+ Best States ------------- Heat Dissipation 25 Energy Generation 16 Energy Capacity 290 Matter Stores 300 Matter Capacity 300 Sight Range 16 Terrain Scan Density 10 Armor Coverage 225 Evasion (%) 55 Recoil Reduction 2 Item Schematics ----------------- None Robot Schematics ------------------ None Fabricated ------------ Nothing Alien Tech Used ----------------- None Achievements -------------- Backstab Challenges ------------ None Game ------ Seed IonBottomlessCompanion Manual? 0 Play Time 00:18:42 Cumulative 9.3 hours Start 2024.10.13 @ 13:13:45 End 2024.10.13 @ 13:31:38 Sessions 1 Manual Loads 0 Difficulty Rogue Special Mode None Game No. 16 Rogue 16 Adventurer 0 Explorer 0 Win Type - Total 0 Types 0/0/0/0/0/0/0/0/0 Lore% 3 Gallery% 14 Achievement% 17 Wizard Run 0 Options --------- Layout 0 ASCII 0 Keyboard 0 Movement Arrows Keybinds 0 Fullscreen 1 Font 18/Smallcaps Map View 76x50 Zoom Use 0% Tactical HUD 1 Map Filters NONE Filters NONE Steam 1 RUN: 71d68d66-e446-483a-89d5-cc33569fa765